{"text_format":"1","workbook":"xlsx","n_sheets":14,"sheets":["IRWINQueryData","Situational Awareness","Values at Risk","Growth Potential","Impact to Other AgncsorJurisdic","Risk Assessment","Probability","Hazards","Values","Final Risk Rating","Strategic Assessment","Preferred Options & Rationale","Approval","Printed Report"],"not_rendered":{"charts":2,"images":4,"macros":1,"external_links":0,"defined_names":4,"comments":0,"pivot_tables":0},"unopened":[],"bounds":{"document_bytes":16777216,"sheet_cells":100000,"rows_first":2000,"rows_last":500,"rows_between":2000,"halvings":0,"cell_chars":16384,"cell_head_chars":4096},"cells_cut":0,"cells_raw":0,"read":"whole","date_system":"1900"}

{"sheet":"IRWINQueryData","index":0,"n_rows":8,"n_cols":98,"rows_kept":8,"cut":false,"hidden":true,"merged":[]}
[]
[]
[null,"QueryURL",{"$f":"\"https://services3.arcgis.com/T4QMspbfLg3qTGWY/arcgis/rest/services/WFIGS_Incident_Locations_YearToDate/FeatureServer/0/query?f=json&where=(POOState%20IN%20('US-MT'))%20AND%20(UniqueFireIdentifier%20IN%20('\" & UseUniqueID &\"'))&outFields=*\"","v":"https://services3.arcgis.com/T4QMspbfLg3qTGWY/arcgis/rest/services/WFIGS_Incident_Locations_YearToDate/FeatureServer/0/query?f=json&where=(POOState%20IN%20('US-MT'))%20AND%20(UniqueFireIdentifier%20IN%20('2025-MTSWS-256057'))&outFields=*"}]
[]
[]
[]
["OBJECTID","SourceOID","ABCDMisc","ADSPermissionState","ContainmentDateTime","ControlDateTime","CreatedBySystem","IncidentSize","DiscoveryAcres","DispatchCenterID","EstimatedCostToDate","FinalAcres","FinalFireReportApprovedByTitle","FinalFireReportApprovedByUnit","FinalFireReportApprovedDate","FireBehaviorGeneral","FireBehaviorGeneral1","FireBehaviorGeneral2","FireBehaviorGeneral3","FireCause","FireCauseGeneral","FireCauseSpecific","FireCode","FireDepartmentID","FireDiscoveryDateTime","FireMgmtComplexity","FireOutDateTime","FireStrategyConfinePercent","FireStrategyFullSuppPercent","FireStrategyMonitorPercent","FireStrategyPointZonePercent","FSJobCode","FSOverrideCode","GACC","ICS209ReportDateTime","ICS209ReportForTimePeriodFrom","ICS209ReportForTimePeriodTo","ICS209ReportStatus","IncidentManagementOrganization","IncidentName","IncidentShortDescription","IncidentTypeCategory","IncidentTypeKind","InitialLatitude","InitialLongitude","InitialResponseAcres","InitialResponseDateTime","IrwinID","IsFireCauseInvestigated","IsFireCodeRequested","IsFSAssisted","IsMultiJurisdictional","IsQuarantined","IsReimbursable","IsTrespass","IsUnifiedCommand","IsValid","LocalIncidentIdentifier","ModifiedBySystem","PercentContained","PercentPerimeterToBeContained","POOCity","POOCounty","POODispatchCenterID","POOFips","POOJurisdictionalAgency","POOJurisdictionalUnit","POOJurisdictionalUnitParentUnit","POOLandownerCategory","POOLandownerKind","POOLegalDescPrincipalMeridian","POOLegalDescQtr","POOLegalDescQtrQtr","POOLegalDescRange","POOLegalDescSection","POOLegalDescTownship","POOPredictiveServiceAreaID","POOProtectingAgency","POOProtectingUnit","POOState","PredominantFuelGroup","PredominantFuelModel","PrimaryFuelModel","SecondaryFuelModel","TotalIncidentPersonnel","UniqueFireIdentifier","WFDSSDecisionStatus","EstimatedFinalCost","OrganizationalAssessment","StrategicDecisionPublishDate","CreatedOnDateTime_dt","ModifiedOnDateTime_dt","IsCpxChild","CpxName","CpxID","SourceGlobalID","GlobalID","IncidentComplexityLevel"]
[453587,38408093,null,"DEFAULT",null,null,"wildcade",15,15,"MTDDC",null,null,null,null,null,null,null,null,null,"Undetermined",null,null,"S00M",null,1745439468000,null,null,null,null,null,null,"P1","1522","NRCC",null,null,null,null,null,"Picket",null,"WF","FI",46.445659999999997,-113.25968,null,null,"{C69EFC30-9904-4141-8B9D-73C95EF77B60}",null,0,1,null,0,null,null,null,1,256057,"wildcade",null,null,null,"Granite","MTDDC",30039,null,null,null,"Private","Private",null,null,null,null,null,null,"NR08","DNRC","MTSWS","US-MT",null,null,null,null,null,"2025-MTSWS-256057","No Decision",null,null,null,1745443636547,1745444033147,0,null,null,"{477E9E34-CF0D-4A45-A7F8-2D808D56E0C2}","e207e499-4379-4187-898d-2e96ce5e7e21"]

{"sheet":"Situational Awareness","index":1,"n_rows":35,"n_cols":17,"rows_kept":35,"cut":false,"hidden":false,"merged":[[25,14,25,18],[9,16,12,20],[34,7,36,14],[2,5,2,12],[7,6,7,12],[2,13,4,17],[6,13,6,17],[11,5,11,6],[6,5,6,6],[6,7,6,11],[11,7,11,11],[9,7,9,11],[9,5,9,6],[4,5,4,6],[4,7,4,11],[23,4,23,6],[23,12,23,13],[13,5,13,6],[15,5,15,6],[23,7,23,11],[19,5,19,6],[19,7,19,11],[21,5,21,6],[21,7,21,11],[17,5,17,6],[17,7,17,11],[15,7,15,11],[13,7,13,11]]}
[]
[null,null,null,null,null,"Montana DNRC - Incident Situation Assessment"]
[null,null,null,null,null,"Situational Awareness",null,null,null,null,null,null,null,"Not Sure of the UniqueID? Click here to go to the IOI Map"]
[]
[null,null,null,null,null,"Date of Analysis:",null,"2025-04-25"]
[]
[null,null,null,null,null,"Enter Fire ID#:",null,"2025-MTSWS-256057"]
[null,null,null,null,null,null,"Enter IncidentID Click on Refresh Data to Update"]
[]
[null,null,null,null,null,"Fire Name:",null,{"$f":"IRWINQueryData!AN8","v":"Picket"},null,null,null,null,null,null,null,null,"*Download a copy of this Excel file and save as the incident name on your local computer*"]
[]
[null,null,null,null,null,"Discovery Date:",null,{"$f":"_xlfn.VALUETOTEXT(IRWINQueryData!Y8)/86400000+DATE(1970,1,1)","v":"2025-04-23T20:17:48"}]
[]
[null,null,null,null,null,"Acres:",null,{"$f":"IRWINQueryData!H8","v":15}]
[]
[null,null,null,null,null,"Dispatch Center:",null,{"$f":"IRWINQueryData!J8","v":"MTDDC"}]
[]
[null,null,null,null,null,"Fire Cause:",null,{"$f":"IRWINQueryData!T8","v":"Undetermined"}]
[]
[null,null,null,null,null,"County:",null,{"$f":"IRWINQueryData!BK8","v":"Granite"},null,null,null,null,null,"Area:","SWLO"]
[]
[null,null,null,null,null,"Protecting Agency:",null,{"$f":"IRWINQueryData!BZ8 & \", \" & IRWINQueryData!CA8","v":"DNRC, MTSWS"},null,null,null,null,null,"Unit:","ANA"]
[]
[null,null,null,null,"Jurisdictional Landowner:",null,null,{"$f":"IRWINQueryData!BQ8","v":"Private"},null,null,null,null,"% Contained:",null,{"$f":"query?f_json_where__POOState_20IN_20__US_MT____20AND_20_UniqueFireIdentifier_20I[PercentContained]","v":0}]
[]
[null,null,null,null,null,null,null,null,null,null,null,null,null,null,"Click Here to view Latest Weather"]
[null,null,null,null,null,"Preparednes Levels",null,null,null,null,"Current Weather Conditions"]
[null,null,null,null,null,null,"Local",1,null,null,"Windspeed",25,null,"Temperature",55]
[]
[null,null,null,null,null,null,"NRCC",1,null,null,"Wind Direction","SW",null,"Humidity",45]
[]
[null,null,null,null,null,null,"National",3]
[]
[]
[null,null,null,null,null,null,null,"PROCEED TO #2 - Values at Risk"]

{"sheet":"Values at Risk","index":2,"n_rows":25,"n_cols":13,"rows_kept":25,"cut":false,"hidden":false,"merged":[[24,2,26,12],[2,2,2,7],[4,2,4,7],[4,9,4,12],[6,9,6,11],[8,9,8,11],[15,7,21,13],[10,9,10,11],[6,12,6,13],[8,12,8,13],[10,12,10,13],[12,2,12,7],[14,2,14,13],[6,1,6,2],[8,1,8,2],[10,1,10,2]]}
[]
[null,null,"Montana DNRC - Incident Situation Assessment"]
[null,null,"Values at Risk"]
[]
[null,null,"Structure Information",null,null,null,null,null,null,"Threat to Human Life/Safety"]
[null,null,null,"Threatened",null,"Damaged",null,"Destroyed"]
[null,"Residence:",null,12,null,0,null,0,null,"Evacuation in Progress:",null,null,"Yes"]
[]
[null,"Commercial:",null,1,null,0,null,0,null,"Evacualtions imminent:",null,null,"No"]
[]
[null,"Outbuilding/Other:",null,2,null,1,null,1,null,"Potential Future Threat:",null,null,"None Likely"]
[]
[null,null,"Other Values"]
[]
[null,null,"Communites, Critical Infrastructure, Timber, Grazing Land, Watershed, or Other Values Threatened"]
[null,null,"12 hours","Yes",null,null,null,"This is only a test, nothing has been damaged or threatened on this incident, this is to test this process and form"]
[]
[null,null,"24 hours","No"]
[]
[null,null,"48 hours","No"]
[]
[null,null,"72 hours","No"]
[]
[]
[null,null,"PROCEED TO #3 - Fire Growth Potential"]

{"sheet":"Growth Potential","index":3,"n_rows":28,"n_cols":10,"rows_kept":28,"cut":false,"hidden":false,"merged":[[10,9,10,12],[15,4,15,15],[17,9,23,15],[16,6,16,8],[27,3,29,13],[2,2,2,7],[4,1,4,4],[5,8,5,13],[6,1,6,4],[4,8,4,13],[6,8,6,13],[6,5,6,7],[8,5,8,7],[10,5,10,7],[12,5,12,7],[8,1,8,4],[10,1,10,4],[12,1,12,4]]}
[]
[null,null,"Montana DNRC - Incident Situation Assessment"]
[null,null,"Fire Growth Potential"]
[]
[null,"Energy Release Component (ERC):",null,null,null,"Very High",null,null,"Link to WF Safe - Requires Login"]
[]
[null,"Primary Fuel Model:",null,null,null,"FM10 - timber",null,null,"Link to Fuel Model Descriptions"]
[]
[null,"Secondary Fuel Model:",null,null,null,"FM6 - Brush"]
[]
[null,"Topography:",null,null,null,"Steep",null,null,null,"Interactive Fire Map"]
[]
[null,"Weather:",null,null,null,"Fire Weather Watch"]
[]
[]
[null,null,null,null,"Growth Potential (Acres) from observed fire behavior"]
[null,null,null,null,null,null,"Confidence Level"]
[null,null,null,null,"12 hours","Moderate",null,"High",null,"Fire is expected to grow in high winds, cooler wet weather in the forcast after the passing front."]
[]
[null,null,null,null,"24 hours","Low",null,"High"]
[]
[null,null,null,null,"48 hours","Low",null,"High"]
[]
[null,null,null,null,"72 hours","Low",null,"High"]
[]
[]
[]
[null,null,null,"PROCEED TO #4 - Impacts to Other Agencies/Juris."]

{"sheet":"Impact to Other AgncsorJurisdic","index":4,"n_rows":23,"n_cols":4,"rows_kept":23,"cut":false,"hidden":false,"merged":[[13,2,19,13],[22,2,24,12],[2,2,2,7],[3,4,3,6],[4,3,4,12],[6,3,6,12],[8,3,8,12],[10,3,10,12]]}
[]
[null,null,"Montana DNRC - Incident Situation Assessment"]
[null,null,"Impact to other Jurisdictions/Protection Agencies"]
[]
[null,null,"12 hours","Missoula County"]
[]
[null,null,"24 hours","USFS, Lolo NF"]
[]
[null,null,"48 hours"]
[]
[null,null,"72 hours"]
[]
[]
[null,null,"Fire has potential to affect private and federal lands.  County has protection of some of the private lands in the area, Lolo NF has protection of USFS lands."]
[]
[]
[]
[]
[]
[]
[]
[]
[null,null,"You should have enough information to complete the Risk Assessment"]

{"sheet":"Risk Assessment","index":5,"n_rows":9,"n_cols":8,"rows_kept":9,"cut":false,"hidden":false,"merged":[[8,2,10,9],[6,2,6,6],[6,7,6,11]]}
[]
[null,"Montana DNRC - Incident Situation Assessment"]
[]
[null,"The next four tabs will help to develop a risk rating to assign to this inicident."]
[null,"Utilize the inputs from the previous pages to help you determing which risk to assign to each value."]
[]
[null,null,"USFS Operational Risk Management Guide",null,null,null,null,"This Guide may be helpfule while working through the risk assessment process."]
[]
[null,null,"PROCEED TO RISK ASSESSMENT"]

{"sheet":"Probability","index":6,"n_rows":28,"n_cols":11,"rows_kept":28,"cut":false,"hidden":false,"merged":[[27,2,28,10],[1,2,2,10],[21,2,24,10],[19,5,19,6],[5,2,5,4],[5,5,5,6],[12,2,12,4],[12,5,12,6],[19,2,19,4],[7,2,10,10],[6,2,6,5],[14,2,17,10]]}
[]
[null,null,"Relative Risk Assessment"]
[]
[null,null,"Probability"]
[]
[null,null,"Time of Season",null,null,"Early",null,null,null,null,{"$f":"IF(F6=\"Early\",3,IF(F6=\"Middle\",2,1))","v":3}]
[null,null,"Time of Season Narrative - optional"]
[]
[]
[]
[]
[]
[null,null,"Barriers to Fire Spread",null,null,"Moderate",null,null,null,null,{"$f":"IF(F13=\"Many\",1,IF(F13=\"Moderate\",2,3))","v":2}]
[null,null,"Barriers to Fire Spread Narrative - optional"]
[]
[]
[]
[]
[]
[null,null,"Seasonal Severity",null,null,"High",null,null,null,null,{"$f":"IF(F20=\"Low/Moderate\",1,IF(F20=\"High\",2,3))","v":2}]
[null,null,"Barriers to Fire Spread Narrative - optional"]
[]
[]
[]
[]
[]
[]
[null,null,"Proceed to Evaluate Hazards"]

{"sheet":"Hazards","index":7,"n_rows":28,"n_cols":11,"rows_kept":28,"cut":false,"hidden":false,"merged":[[27,2,28,10],[1,2,2,10],[14,2,17,10],[19,2,19,4],[21,2,24,10],[19,5,19,6],[5,2,5,4],[5,5,5,6],[6,2,6,5],[7,2,10,10],[12,2,12,4],[12,5,12,6]]}
[]
[null,null,"Relative Risk Assessment"]
[]
[null,null,"Hazards"]
[]
[null,null,"Fuel Conditions",null,null,"Moderate",null,null,null,null,{"$f":"IF(F6=\"High\",3,IF(F6=\"Moderate\",2,1))","v":2}]
[null,null,"Fuel Conditions Narrative - optional"]
[]
[]
[]
[]
[]
[null,null,"Fire Behavior",null,null,"Moderate",null,null,null,null,{"$f":"IF(F13=\"High\",3,IF(F13=\"Moderate\",2,1))","v":2}]
[null,null,"Fire Behavior Narrative - optional"]
[]
[]
[]
[]
[]
[null,null,"Potential for Fire Growth",null,null,"High",null,null,null,null,{"$f":"IF(F20=\"High\",3,IF(F20=\"Moderate\",2,1))","v":3}]
[null,null,"Potential for Fire Growth Narrative - optional"]
[]
[]
[]
[]
[]
[]
[null,null,"Proceed to Evaluate Values"]

{"sheet":"Values","index":8,"n_rows":36,"n_cols":11,"rows_kept":36,"cut":false,"hidden":false,"merged":[[35,2,36,10],[1,2,2,10],[24,2,24,4],[24,5,24,6],[6,2,6,8],[5,2,5,4],[5,5,5,6],[14,2,14,4],[14,5,14,6],[7,2,12,10],[16,2,22,10],[26,2,32,10]]}
[]
[null,null,"Relative Risk Assessment"]
[]
[null,null,"Values"]
[]
[null,null,"Structures/Infrastructure/Other Concerns",null,null,"Low",null,null,null,null,{"$f":"IF(F6=\"High\",3,IF(F6=\"Moderate\",2,1))","v":1}]
[null,null,"Structure/Infrastrucutre/Other Conerns Narrative - Should be completed for Preferred Options/Rationale Section*"]
[null,null,"There are several subdivisions and homes that are of concern in the area.  Multiple wooden power poles are present.  Several wood structure bridges provide ingress and egress to the area."]
[]
[]
[]
[]
[]
[]
[null,null,"Proximity and Threat of fire to Values",null,null,"Moderate",null,null,null,null,{"$f":"IF(F15=\"High\",3,IF(F15=\"Moderate\",2,1))","v":2}]
[null,null,"Poximity to Values Narrative - Should be completed for Preferred Options/Rationale Section"]
[null,null,"Fire is within 3 miles of critical infrastructure in the area.  Evacuation is, or will be occuring within the next 12 to 24 hours.  Due to proximity to this area is threatened."]
[]
[]
[]
[]
[]
[]
[]
[null,null,"Social/Economic Concerns",null,null,"Moderate",null,null,null,null,{"$f":"IF(F25=\"High\",3,IF(F25=\"Moderate\",2,1))","v":2}]
[null,null,"Social/Economic Concerns Narrative - optional"]
[]
[]
[]
[]
[]
[]
[]
[]
[]
[null,null,"Proceed to Final Risk Rating"]

{"sheet":"Final Risk Rating","index":9,"n_rows":30,"n_cols":17,"rows_kept":30,"cut":false,"hidden":false,"merged":[[29,2,29,6],[30,2,34,6],[21,2,22,7],[24,4,24,6],[23,2,23,6],[25,4,25,6],[26,4,26,6],[27,4,27,6]]}
[]
[]
[null,null,null,null,null,null,null,null,null,null,null,"Relative Risk Rating","Score","Low","Moderate","High","Risk"]
[null,null,null,null,null,null,null,null,null,null,null,"Social/Economic Concerns",{"$f":"IF(Values!K25=1,1,IF(Values!K25=2,2,3))","v":2},{"$f":"IF(M4=1,1,\"\")","v":""},{"$f":"IF(M4=2,2,\"\")","v":2},{"$f":"IF(M4=3,3,\"\")","v":""},{"$f":"IF(Values!$K25=1,\"Low\",IF(Values!K25=2,\"Moderate\",\"High\"))","v":"Moderate"}]
[null,null,null,null,null,null,null,null,null,null,null,"Proximity & Threat of Fire",{"$f":"IF(Values!K15=1,1,IF(Values!K15=2,2,3))","v":2},{"$f":"IF(M5=1,1,\"\")","v":""},{"$f":"IF(M5=2,2,\"\")","v":2},{"$f":"IF(M5=3,3,\"\")","v":""},{"$f":"IF(Values!$K15=1,\"Low\",IF(Values!K15=2,\"Moderate\",\"High\"))","v":"Moderate"}]
[null,null,null,null,null,null,null,null,null,null,null,"Structures/Infrastruct/Other",{"$f":"IF(Values!$K6=1,1,IF(Values!K6=2,2,3))","v":1},1,"","",{"$f":"IF(Values!$K6=1,\"Low\",IF(Values!K6=2,\"Moderate\",\"High\"))","v":"Low"}]
[null,null,null,null,null,null,null,null,null,null,null,"Potential Fire Growth",{"$f":"IF(Hazards!K20=1,1,IF(Hazards!K20=2,2,3))","v":3},"","",3,{"$f":"IF(Hazards!K20=1,\"Low\",IF(Hazards!K20=2,\"Moderate\",\"High\"))","v":"High"}]
[null,null,null,null,null,null,null,null,null,null,null,"Fire Behavior",{"$f":"IF(Hazards!K13=1,1,IF(Hazards!K13=2,2,3))","v":2},"",2,"",{"$f":"IF(Hazards!K13=1,\"Low\",IF(Hazards!K13=2,\"Moderate\",\"High\"))","v":"Moderate"}]
[null,null,null,null,null,null,null,null,null,null,null,"Fuel Conditions",{"$f":"IF(Hazards!K6=1,1,IF(Hazards!K6=2,2,3))","v":2},"",2,"",{"$f":"IF(Hazards!K6=1,\"Low\",IF(Hazards!K6=2,\"Moderate\",\"High\"))","v":"Moderate"}]
[null,null,null,null,null,null,null,null,null,null,null,"Seasonal Severity",{"$f":"IF(Probability!K20=1,1,IF(Probability!K20=2,2,3))","v":2},"",2,"",{"$f":"IF(Probability!K20=1,\"Low\",IF(Probability!K20=2,\"Moderate\",\"High\"))","v":"Moderate"}]
[null,null,null,null,null,null,null,null,null,null,null,"Barriers to fire Spread",{"$f":"IF(Probability!K13=1,1,IF(Probability!K13=2,2,3))","v":2},"",2,"",{"$f":"IF(Probability!K13=1,\"Low\",IF(Probability!K13=2,\"Moderate\",\"High\"))","v":"Moderate"}]
[null,null,null,null,null,null,null,null,null,null,null,"Time of Season",{"$f":"IF(Probability!K6=1,1,IF(Probability!K6=2,2,3))","v":3},"","",3,{"$f":"IF(Probability!K6=1,\"Low\",IF(Probability!K6=2,\"Moderate\",\"High\"))","v":"High"}]
[]
[]
[]
[null,null,null,null,null,null,null,null,null,null,null,"Tally of factors",null,null,"Sort Tally"]
[null,null,null,null,null,null,null,null,null,null,null,"Low",{"$f":"COUNT(N4:N12)","v":1},null,{"$f":"_xlfn._xlws.SORT(L17:M19,2,-1)","v":"Moderate"},6]
[null,null,null,null,null,null,null,null,null,null,null,"Moderate",{"$f":"COUNT(O4:O12)","v":6},null,"High",2]
[null,null,null,null,null,null,null,null,null,null,null,"High",{"$f":"COUNT(P4:P12)","v":2},null,"Low",1]
[]
[]
[null,null,"Relative Risk Rating Recommendations"]
[]
[]
[null,null,"Rating","Tally of factors","Recommendation"]
[null,null,{"$f":"O17","v":"Moderate"},6,{"$f":"IF($C26=\"Low\",\"Majority of the items are Low, with a few items marked Moderate and/or High\",IF($C26=\"Moderate\",\"Majority of the items are Moderate, with a few items marked Low and/or High\",\"Majority of the items are High, with a few items marked Low or Moderate\"))","v":"Majority of the items are Moderate, with a few items marked Low and/or High"}]
[null,null,"High",2,{"$f":"IF($C27=\"Low\",\"Majority of the items are Low, with a few items marked Moderate and/or High\",IF($C27=\"Moderate\",\"Majority of the items are Moderate, with a few items marked Low and/or High\",\"Majority of the items are High, with a few items marked Low or Moderate\"))","v":"Majority of the items are High, with a few items marked Low or Moderate"}]
[null,null,"Low",1,"Majority of the items are Low, with a few items marked Moderate and/or High"]
[]
[null,null,"Relative Risk Rating Narrative (optional)"]

{"sheet":"Strategic Assessment","index":10,"n_rows":34,"n_cols":10,"rows_kept":34,"cut":false,"hidden":false,"merged":[[15,3,18,15],[21,3,24,15],[27,3,30,15],[33,3,33,15],[2,5,2,10],[4,4,4,8],[8,3,8,8],[10,4,10,8],[12,4,12,8]]}
[]
[null,null,null,null,null,"Montana DNRC - Incident Situation Assessment"]
[null,null,null,null,null,"Strategic Assessment"]
[]
[null,null,null,null,"Resistance to Control:",null,null,null,null,"Medium"]
[]
[null,null,null,null,"Resource Availability (Potential to fill requests):",null,null,null,null,"Medium"]
[]
[null,null,null,"Risk Assessment or Complexity Analysis Completed:",null,null,null,null,null,"Yes"]
[]
[null,null,null,null,"Local/Unit Capabilities:",null,null,null,null,"Limited"]
[]
[null,null,null,null,"Stakeholders Contacted:",null,null,null,null,"Yes"]
[]
[null,null,null,"Documentation of Stakeholders Discussion:"]
[null,null,null,"Stakeholders contacted about possibility of fire growth onto neighboring lands.  All understand the DNRC will work to contain the incident to the least acres possible."]
[]
[]
[]
[]
[null,null,null,"Major problems and concerns (control problems, social/political/economic concerns or impacts, etc.)"]
[null,null,null,"Dry fuels and a passing cold front could make the incident difficult to control"]
[]
[]
[]
[]
[null,null,null,"How likely is it that containment/control targets will be met, given the current resources and suppression/control strategy:"]
[null,null,null,"Expected wet weather after the coldfront should help to meet containment targets"]
[]
[]
[]
[]
[]
[null,null,null,"Proceed to Preferred Options and Rationale"]

{"sheet":"Preferred Options & Rationale","index":11,"n_rows":72,"n_cols":14,"rows_kept":72,"cut":false,"hidden":false,"merged":[[36,7,36,11],[37,7,37,11],[37,1,37,5],[39,1,39,2],[39,4,39,5],[39,7,39,9],[54,13,65,21],[34,13,35,21],[36,13,53,21],[71,1,71,11],[4,10,4,11],[16,10,16,11],[15,10,15,11],[61,1,68,11],[41,1,47,11],[49,1,49,11],[51,1,58,11],[27,1,27,11],[29,1,35,11],[5,10,5,11],[7,1,14,11],[18,1,25,11]]}
[]
[null,"Montana DNRC - Incident Situation Assessment"]
[null,"Preferred Options/Rationale"]
[]
[null,"Below are comments from the Values at Risk Section of the Risk Assessment",null,null,null,null,null,null,null,null,"Risk Rating"]
[null,"Infrastructure/Cultural/Natural Values - Homes, Bridges, Other Values",null,null,null,null,null,null,null,null,{"$f":"Values!F6","v":"Low"}]
[]
[null,{"$f":"Values!C8","v":"There are several subdivisions and homes that are of concern in the area.  Multiple wooden power poles are present.  Several wood structure bridges provide ingress and egress to the area."}]
[]
[]
[]
[]
[]
[]
[]
[null,null,null,null,null,null,null,null,null,null,"Risk Rating"]
[null,"Proximity and Threat to Values - What is the threat and poximity of the Incedent to the Values as Risk",null,null,null,null,null,null,null,null,{"$f":"Values!F15","v":"Moderate"}]
[]
[null,{"$f":"Values!C17","v":"Fire is within 3 miles of critical infrastructure in the area.  Evacuation is, or will be occuring within the next 12 to 24 hours.  Due to proximity to this area is threatened."}]
[]
[]
[]
[]
[]
[]
[]
[]
[null,"Impact to other agencies, or jurisdictions - From Impacts page narrative"]
[]
[null,{"$f":"'Impact to Other AgncsorJurisdic'!C14","v":"Fire has potential to affect private and federal lands.  County has protection of some of the private lands in the area, Lolo NF has protection of USFS lands."}]
[]
[]
[]
[]
[null,null,null,null,null,null,null,null,null,null,null,null,null,"* If this is not a DNRC incident*"]
[]
[null,"Select DNRC Preferred Fire Management Strategy",null,null,null,null,null,"Cooperator's Preferred Strategy (If Co-management)",null,null,null,null,null,"Key discussion questions to have with your partners may include:\n• What is or were the initial response actions on this fire, and why?\n• Were risk management decisions (strategic, operational, or real time) made during or after the initial response on this fire? What conditions were present that led you to that decision?\n• What objectives are being considered or established for this incident? And what strategy or strategies are being employed to achieve those objectives?\n• What are or where are the critical values considered when developing the strategy or strategies?\n• How is risk management incorporated into decision making? Are we considering transfer of risk to neighboring entities or future firefighting resources if the fire leaves this jurisdiction? \n• How are we going to co-manage this fire and ensure the tactics and actions we choose are implemented on the ground?"]
[null,"Suppression",null,null,null,null,null,"Suppression"]
[]
[null,"Boundary Incident?",null,"Unknown","Mutual Threat Zone?",null,"Unknown","Wildland/Urban Interface?",null,null,"Unknown"]
[]
[null,"<Enter rationale for selected strategy - DNRC Line Officer may select a different strategy than cooperating agency.>"]
[]
[]
[]
[]
[]
[]
[]
[null,"If this is co-management of a large fire - Click here for the NRCC Supplimental Decision Document"]
[null,"Incident Objectives -*RESPONDER AND PUBLIC SAFETY IS THE FIRST PRIORITY FOR ALL OBJECTIVES AND STRATEGIES*"]
[null,"<Enter incident objectives>"]
[]
[]
[null,null,null,null,null,null,null,null,null,null,null,null,null,"Key questions we should be asking of ourselves:\n• Have we identified and conveyed our highest priorities and critical values at risk? Have we provided enough detail to fully explain what makes these values critical and why? How important are they? What is most important (severity/consequence)? What is the probability/likelihood of fire impacting those values?\n• What direction are we (Agency Administrator/Line Officer or our authorized representatives) providing to our staff or IMT?\n• Have we completed an Incident Situation Assessment? Does it align with the course of action published in a WFDSS?\n• Do we agree if a cost share is appropriate?"]
[]
[]
[]
[]
[]
[null,"Remarks"]
[null,"<Enter any remarks>"]
[]
[]
[]
[]
[]
[]
[]
[]
[]
[null,"Proceed to Approval Page"]

{"sheet":"Approval","index":12,"n_rows":24,"n_cols":5,"rows_kept":24,"cut":false,"hidden":false,"merged":[[10,4,10,6],[16,3,20,13],[21,3,21,13],[23,3,23,13],[12,4,12,6],[14,4,14,6]]}
[]
[]
[]
[]
[]
[]
[null,null,null,"Montana DNRC - Incident Situation Assessment"]
[null,null,null,"Approval"]
[]
[null,null,null,"Agency Line Officer Name:"]
[null,null,null,null,"John Doe"]
[]
[null,null,null,"Date:","2025-03-01"]
[]
[null,null,null,"Time:",1500]
[]
[null,null,null,"Reassess preferred option if: Examples; (Control objectives not met after three operational periods, significant increase in number and type of values at risk, span of control exceeds capability of assigned incident management organization, continued lack of critical resources, and/or increased threat to adjacent jurisdictions/infrastructure).\n"]
[]
[]
[]
[]
[null,null,null,"IF REASSESSMENT INDICATES NEED TO MODIFY PREFERRED OPTION, RETURN TO SECTION 6."]
[]
[null,null,null,"Proceed to the printed report to print document for signature"]

{"sheet":"Printed Report","index":13,"n_rows":202,"n_cols":9,"rows_kept":202,"cut":false,"hidden":false,"merged":[[149,0,156,8],[158,0,158,8],[173,0,173,8],[159,0,159,2],[160,1,160,7],[164,1,164,2],[164,3,164,4],[119,0,119,2],[120,0,120,2],[120,6,120,8],[147,0,147,8],[125,0,132,8],[136,0,136,8],[138,0,145,8],[122,3,122,4],[122,0,122,1],[201,0,201,1],[199,2,199,4],[200,2,200,4],[201,2,201,4],[199,5,199,8],[200,5,200,8],[201,5,201,8],[200,0,200,1],[197,1,197,7],[198,0,198,1],[198,2,198,4],[198,5,198,8],[199,0,199,1],[181,0,181,8],[11,0,11,3],[11,5,11,8],[13,0,13,3],[15,4,15,5],[16,4,16,5],[18,0,18,8],[19,0,19,3],[19,5,19,8],[20,5,20,7],[21,5,21,7],[22,5,22,7],[23,5,23,7],[25,0,25,8],[93,0,100,8],[102,0,109,8],[0,6,0,8],[1,6,2,8],[13,5,13,8],[9,5,9,7],[9,0,9,1],[9,2,9,3],[5,0,5,3],[7,0,7,2],[7,3,7,5],[7,6,7,8],[0,3,1,5],[3,0,3,8],[5,5,5,8],[6,1,6,2],[6,3,6,5],[37,0,37,2],[37,3,37,4],[38,1,38,2],[37,5,46,8],[27,2,30,8],[32,0,32,8],[33,0,33,2],[34,0,34,2],[35,0,35,2],[33,6,33,7],[34,6,34,7],[39,1,39,2],[40,1,40,2],[41,1,41,2],[38,3,38,4],[39,3,39,4],[40,3,40,4],[41,3,41,4],[47,0,47,8],[48,1,48,8],[49,1,49,8],[50,1,50,8],[51,1,51,8],[63,5,63,6],[64,5,64,6],[68,0,75,8],[53,0,60,8],[62,0,62,8],[63,0,63,2],[64,0,64,2],[77,0,82,8],[84,0,89,8],[91,0,91,8],[65,0,65,2],[111,0,118,8]]}
[null,null,null,null,null,null,"Analysis Date/Time"]
[null,null,null,null,null,null,{"$f":"'Situational Awareness'!H5","v":"2025-04-25"}]
[]
["Situational Awareness"]
["Incident Name",null,null,null,null,"Incident Number"]
[{"$f":"'Situational Awareness'!H10","v":"Picket"},null,null,null,null,{"$f":"'Situational Awareness'!H7","v":"2025-MTSWS-256057"}]
["Location","Latitude",null,"Longitude",null,null,"County"]
[{"$f":"LEFT(IRWINQueryData!AR8,2)&\"° \"&ROUND((IRWINQueryData!AR8-TRUNC(IRWINQueryData!AR8)/60),2)&\"' N\"","v":"46° 45.68' N"},null,null,{"$f":"LEFT(IRWINQueryData!AS8,4)&\"° \"& (ROUND(((IRWINQueryData!AS8)-INT(IRWINQueryData!AS8)),3))*60 & \"' W\"","v":"-113° 44.4' W"},null,null,{"$f":"'Situational Awareness'!H20","v":"Granite"}]
["Land Office",null,"Unit Office",null,null,"Fire Cause",null,null,"% Contained"]
[{"$f":"'Situational Awareness'!O20","v":"SWLO"},null,{"$f":"'Situational Awareness'!O22","v":"ANA"},null,null,{"$f":"'Situational Awareness'!H18","v":"Undetermined"},null,null,{"$f":"IRWINQueryData!BH8","v":0}]
["Incident Start Date and Time",null,null,null,null,"Incident Size"]
[{"$f":"_xlfn.VALUETOTEXT(IRWINQueryData!Y8)/86400000+DATE(1970,1,1)","v":"2025-04-23T20:17:48"},null,null,null,null,{"$f":"'Situational Awareness'!H14 & \" Acres\"","v":"15 Acres"}]
["Jurisdiction Agency, Type and Kind",null,null,null,null,"Protection Agency and Unit ID"]
[{"$f":"IRWINQueryData!BN8 & \", \" & IRWINQueryData!BQ8 & \", \" & IRWINQueryData!BR8","v":", Private, Private"},null,null,null,null,{"$f":"IRWINQueryData!BZ8 & \", \" & IRWINQueryData!CA8","v":"DNRC, MTSWS"}]
["Preparedness Levels",null,null,null,null,"Current Weather"]
["Local",{"$f":"'Situational Awareness'!H28","v":1},null,null,"Windspeed",null,{"$f":"'Situational Awareness'!L28","v":25},"Temp",{"$f":"'Situational Awareness'!O28","v":55}]
["NRCC",{"$f":"'Situational Awareness'!H30","v":1},null,null,"Wind Direction",null,{"$f":"'Situational Awareness'!L30","v":"SW"},"Humidity",{"$f":"'Situational Awareness'!O30","v":45}]
["National",{"$f":"'Situational Awareness'!H32","v":3}]
["Values at Risk"]
["Structure Information",null,null,null,null,"Threat to Human Life/Safety"]
["Type","Threatened","Damaged","Destroyed",null,"Evacuation(s) in Progress:",null,null,{"$f":"'Values at Risk'!M7","v":"Yes"}]
["Residience",{"$f":"'Values at Risk'!D7","v":12},{"$f":"'Values at Risk'!F7","v":0},{"$f":"'Values at Risk'!H7","v":0},null,"Evacuation(s) imminient:",null,null,{"$f":"'Values at Risk'!M9","v":"No"}]
["Commercial",{"$f":"'Values at Risk'!D9","v":1},{"$f":"'Values at Risk'!F7","v":0},{"$f":"'Values at Risk'!H9","v":0},null,"Potential future threat:",null,null,{"$f":"'Values at Risk'!M11","v":"None Likely"}]
["Outbuilding",{"$f":"'Values at Risk'!D11","v":2},{"$f":"'Values at Risk'!F11","v":1},{"$f":"'Values at Risk'!H11","v":1}]
[]
["Other Values at Risk"]
["Communities, Critical Infrastructure, Timber, Grazing land, Watershed, and Other Values Threatened"]
["12 hours",{"$f":"'Values at Risk'!D16","v":"Yes"},{"$f":"'Values at Risk'!H16","v":"This is only a test, nothing has been damaged or threatened on this incident, this is to test this process and form"}]
["24 hours",{"$f":"'Values at Risk'!D18","v":"No"}]
["48 hours",{"$f":"'Values at Risk'!D20","v":"No"}]
["72 hours",{"$f":"'Values at Risk'!D22","v":"No"}]
[]
["Growth Potential"]
["Energry Release Component:",null,null,{"$f":"'Growth Potential'!F5","v":"Very High"},null,null,"Topography:",null,{"$f":"'Growth Potential'!F11","v":"Steep"}]
["Primary Fuel Model:",null,null,{"$f":"'Growth Potential'!F7","v":"FM10 - timber"},null,null,"Weather:",null,{"$f":"'Growth Potential'!F13","v":"Fire Weather Watch"}]
["Secondary Fuel Model:",null,null,{"$f":"'Growth Potential'!F9","v":"FM6 - Brush"}]
[]
["Growth Potental Acres",null,null,"Confidence",null,{"$f":"'Growth Potential'!J18","v":"Fire is expected to grow in high winds, cooler wet weather in the forcast after the passing front."}]
["12 hours",{"$f":"'Growth Potential'!F18","v":"Moderate"},null,{"$f":"'Growth Potential'!H18","v":"High"}]
["24 hours",{"$f":"'Growth Potential'!F20","v":"Low"},null,{"$f":"'Growth Potential'!H20","v":"High"}]
["48 hours",{"$f":"'Growth Potential'!F22","v":"Low"},null,{"$f":"'Growth Potential'!H22","v":"High"}]
["72 hours",{"$f":"'Growth Potential'!F24","v":"Low"},null,{"$f":"'Growth Potential'!H24","v":"High"}]
[]
[]
[]
[]
[]
["Other Jurisdictions/Protection agencies Impacted"]
["12 hours",{"$f":"'Impact to Other AgncsorJurisdic'!D5","v":"Missoula County"}]
["24 hours",{"$f":"'Impact to Other AgncsorJurisdic'!D7","v":"USFS, Lolo NF"}]
["48 hours",{"$f":"'Impact to Other AgncsorJurisdic'!D9","v":0}]
["72 hours",{"$f":"'Impact to Other AgncsorJurisdic'!D11","v":0}]
[]
[{"$f":"'Impact to Other AgncsorJurisdic'!C14","v":"Fire has potential to affect private and federal lands.  County has protection of some of the private lands in the area, Lolo NF has protection of USFS lands."}]
[]
[]
[]
[]
[]
[]
[]
[]
["Strategic Assessment"]
["Resistance to Control:",null,null,{"$f":"'Strategic Assessment'!J5","v":"Medium"},null,"Resource Availability:",null,{"$f":"'Strategic Assessment'!J7","v":"Medium"}]
["Risk Assessment Complete:",null,null,{"$f":"'Strategic Assessment'!J9","v":"Yes"},null,"Local Unit Capabilities:",null,{"$f":"'Strategic Assessment'!J11","v":"Limited"}]
["Stakeholders Contacted:",null,null,{"$f":"'Strategic Assessment'!J13","v":"Yes"}]
[]
["Documentation of Stakeholder Discussion"]
[{"$f":"'Strategic Assessment'!D16","v":"Stakeholders contacted about possibility of fire growth onto neighboring lands.  All understand the DNRC will work to contain the incident to the least acres possible."}]
[]
[]
[]
[]
[]
[]
[]
["Major problems and concerns (control problems, social/political/economic concerns or impacts, etc.)"]
[{"$f":"'Strategic Assessment'!D22","v":"Dry fuels and a passing cold front could make the incident difficult to control"}]
[]
[]
[]
[]
[]
["How likely is it that containment/control targets will be met, given the current resources and suppression/control strategy:"]
[{"$f":"'Strategic Assessment'!D28","v":"Expected wet weather after the coldfront should help to meet containment targets"}]
[]
[]
[]
[]
[]
[]
["Preferred Options/Rationale"]
["Risk to Infrastructure/Cultural or Natural Values"]
[{"$f":"'Preferred Options & Rationale'!B8","v":"There are several subdivisions and homes that are of concern in the area.  Multiple wooden power poles are present.  Several wood structure bridges provide ingress and egress to the area."}]
[]
[]
[]
[]
[]
[]
[]
["Proximity of Threat to Values"]
[{"$f":"'Preferred Options & Rationale'!B19","v":"Fire is within 3 miles of critical infrastructure in the area.  Evacuation is, or will be occuring within the next 12 to 24 hours.  Due to proximity to this area is threatened."}]
[]
[]
[]
[]
[]
[]
[]
["Impact to other Agencies or Jurisdictions"]
[{"$f":"'Preferred Options & Rationale'!B30","v":"Fire has potential to affect private and federal lands.  County has protection of some of the private lands in the area, Lolo NF has protection of USFS lands."}]
[]
[]
[]
[]
[]
[]
[]
["DNRC Selected Strategy",null,null,null,null,null,"Cooperator's Preferred Strategy"]
[{"$f":"'Preferred Options & Rationale'!B38","v":"Suppression"},null,null,null,null,null,{"$f":"'Preferred Options & Rationale'!H38","v":"Suppression"}]
[]
["Boundary Incident:",null,{"$f":"'Preferred Options & Rationale'!D40","v":"Unknown"},"Mutual Threat Zone:",null,{"$f":"'Preferred Options & Rationale'!G40","v":"Unknown"},"In WUI:",{"$f":"'Preferred Options & Rationale'!K40","v":"Unknown"}]
[]
["Rationale for preferred strategy"]
[{"$f":"'Preferred Options & Rationale'!B42","v":"<Enter rationale for selected strategy - DNRC Line Officer may select a different strategy than cooperating agency.>"}]
[]
[]
[]
[]
[]
[]
[]
[]
[]
[]
["Preferred Options/Rationale Continued"]
["Objectives"]
[{"$f":"'Preferred Options & Rationale'!B52","v":"<Enter incident objectives>"}]
[]
[]
[]
[]
[]
[]
[]
[]
["Remarks"]
[]
[{"$f":"'Preferred Options & Rationale'!B62","v":"<Enter any remarks>"}]
[]
[]
[]
[]
[]
[]
[]
[]
["Incident Situation Assessment Approval"]
["Agency Line Officer, or Representative"]
[null,{"$f":"Approval!E11","v":"John Doe"}]
[]
["Signature:"]
[]
["Date/Time:",{"$f":"Approval!E13","v":"2025-03-01"},null,{"$f":"Approval!E15","v":1500}]
[]
[]
[]
[]
[]
[]
[]
[]
["Attached Supporting Documentation"]
[]
["X","Relative Risk Assessment"]
[null,"Complexity Analysis"]
[null,"Maps"]
[null,"Incident Briefing Package"]
[null,"Delegation of Authority"]
[]
["Risk Assessment Documentation"]
[]
[]
[]
[]
[]
[]
[]
[]
[]
[]
[]
[]
[]
[]
[]
[null,"Relative Risk Recommendation"]
["Rating",null,"Tally of Risk Factors",null,null,"Recommendation"]
[{"$f":"'Final Risk Rating'!O17","v":"Moderate"},null,{"$f":"'Final Risk Rating'!P17","v":6},null,null,{"$f":"IF('Final Risk Rating'!O17=\"Low\",\"Majority of the items are Low, with a few items marked Moderate and/or High\",IF('Final Risk Rating'!O17=\"Moderate\",\"Majority of the items are Moderate, with a few items marked Low and/or High\",\"Majority of the items are High, with a few items marked Low or Moderate\"))","v":"Majority of the items are Moderate, with a few items marked Low and/or High"}]
[{"$f":"'Final Risk Rating'!O18","v":"High"},null,{"$f":"'Final Risk Rating'!P18","v":2},null,null,{"$f":"IF('Final Risk Rating'!O18=\"Low\",\"Majority of the items are Low, with a few items marked Moderate and/or High\",IF('Final Risk Rating'!O18=\"Moderate\",\"Majority of the items are Moderate, with a few items marked Low and/or High\",\"Majority of the items are High, with a few items marked Low or Moderate\"))","v":"Majority of the items are High, with a few items marked Low or Moderate"}]
[{"$f":"'Final Risk Rating'!O19","v":"Low"},null,{"$f":"'Final Risk Rating'!P19","v":1},null,null,{"$f":"IF('Final Risk Rating'!O19=\"Low\",\"Majority of the items are Low, with a few items marked Moderate and/or High\",IF('Final Risk Rating'!O19=\"Moderate\",\"Majority of the items are Moderate, with a few items marked Low and/or High\",\"Majority of the items are High, with a few items marked Low or Moderate\"))","v":"Majority of the items are Low, with a few items marked Moderate and/or High"}]